bitfinex/quotes_ETHUSD_20240810
["timestamp","ask_amount","ask_price","bid_price","bid_amount"]
[1723294040339,1.89897,2633.0,2632.7,2.2652]
[1723294041339,1.89909,2632.9,2632.7,2.2652]
[1723294041537,3.0,2633.1,2632.5,2.2652]
[1723294041722,1.89917,2632.8,2632.5,2.2652]
[1723294043839,3.0,2632.9,2632.7,2.2652]
[1723294044148,1.89898,2633.0,2632.7,2.2652]
[1723294044346,3.0,2633.1,2632.7,2.2652]
[1723294044847,1.89897,2633.0,2632.7,2.2652]
[1723294045014,3.0,2633.1,2632.7,2.60532]
[1723294045343,1.89885,2633.2,2632.7,2.60532]
[1723294045543,1.89892,2633.1,2632.7,2.60532]
[1723294045841,4.8989,2633.1,2632.7,2.60532]
[1723294046606,3.0,2633.1,2632.7,2.60532]
[1723294047246,1.89892,2633.1,2632.7,2.60532]
[1723294047748,4.89892,2633.1,2632.7,2.60532]
[1723294049459,3.0,2633.1,2632.7,2.60532]
[1723294049755,1.89889,2633.2,2632.7,2.60532]
[1723294049948,1.89876,2633.3,2632.9,2.4968]
[1723294050118,3.0,2633.3,2632.9,2.4968]
[1723294050632,4.89871,2633.4,2632.9,2.4968]
[1723294050842,1.89871,2633.4,2633.1,2.4968]
[1723294051940,3.0,2633.5,2633.1,2.4968]
[1723294052161,4.89863,2633.5,2633.1,2.4968]
[1723294052768,1.8987,2633.4,2633.1,2.4968]
[1723294053466,1.8987,2633.4,2633.2,0.20544681]
[1723294054066,3.0,2633.5,2633.2,0.20544681]
[1723294054261,4.89856,2633.6,2633.3,2.4968]
[1723294054562,4.89856,2633.6,2633.4,0.20528592]
[1723294055367,1.89842,2633.8,2633.4,0.20528592]
[1723294055577,3.79686,2633.8,2633.4,0.20528592]
[1723294055761,1.89842,2633.8,2633.4,0.20528592]
[1723294055936,3.79687,2633.8,2633.4,0.20528592]
[1723294056137,1.89847,2633.7,2633.5,2.4968]
[1723294056434,1.89847,2633.7,2633.5,2.7018041]
[1723294056741,1.89839,2633.8,2633.5,2.7018041]
[1723294056949,0.59508322,2634.0,2633.6,1.136]
[1723294057280,0.59508322,2634.0,2633.7,2.4968]
[1723294057583,2.49333322,2634.0,2633.7,2.70158432]
[1723294060241,1.89825,2634.0,2633.7,2.70158432]
[1723294060765,3.79656,2634.0,2633.7,2.70158432]
[1723294060966,1.89832,2633.9,2633.7,2.70158432]
[1723294061138,4.89832,2633.9,2633.7,2.70158432]
[1723294061838,3.0,2633.9,2633.7,2.70158432]
[1723294062276,1.89825,2634.0,2633.7,2.70158432]
[1723294064180,3.0,2634.1,2633.7,2.70158432]
[1723294064491,4.89799,2634.4,2633.7,4.92774275]
[1723294064779,1.89809,2634.3,2633.7,4.92774275]
[1723294064988,1.89818,2634.1,2633.7,4.92774275]
[1723294068245,1.89818,2634.1,2633.7,2.70158432]
[1723294071784,3.0,2634.2,2633.7,2.70158432]
[1723294071961,4.89811,2634.2,2633.7,2.70158432]
[1723294072382,3.0,2634.2,2633.7,2.70158432]
[1723294072891,1.89806,2634.3,2633.7,2.70158432]
[1723294073389,3.0,2634.4,2633.9,2.4664]
[1723294073687,2.49286442,2634.5,2634.1,2.4664]
[1723294074008,1.89794,2634.5,2634.1,2.4664]
[1723294074317,1.89794,2634.5,2634.2,0.20296689]
[1723294076813,3.0,2634.6,2634.2,0.20296689]
[1723294077198,4.89783,2634.6,2634.2,0.20296689]
[1723294078077,3.0,2634.6,2634.2,1.33896689]
[1723294078388,3.79556,2634.7,2634.3,2.4664]
[1723294078579,3.0,2634.6,2634.3,2.6692865]
[1723294078781,1.89776,2634.7,2634.3,2.6692865]
[1723294079317,3.79556,2634.7,2634.3,2.6692865]
[1723294079488,3.0,2634.6,2634.3,2.6692865]
[1723294079985,0.59481791,2635.0,2634.3,22.60981515]
[1723294080307,0.59481791,2635.0,2634.5,2.4664]
[1723294080493,1.89733,2635.3,2634.6,1.136]
[1723294080698,3.0,2635.2,2634.7,0.20236381]
[1723294081022,1.89733,2635.3,2634.8,2.4664]
[1723294081228,1.89733,2635.3,2634.8,3.6024]
[1723294081376,1.89733,2635.3,2634.9,0.2022031]
[1723294081581,2.14653641,2635.3,2634.9,0.2022031]
[1723294082279,5.14653641,2635.3,2634.9,0.2022031]
[1723294082480,3.0,2635.3,2635.0,2.4664]
[1723294082711,5.49199407,2635.4,2635.1,0.20178732]
[1723294083380,6.18230584,2635.4,2635.1,0.20178732]
[1723294084231,3.59473407,2635.4,2635.1,0.20178732]
[1723294084397,0.59473407,2635.4,2635.1,0.20178732]
[1723294084636,6.79444,2635.5,2635.1,0.20178732]
[1723294084958,4.89721,2635.5,2635.1,0.20178732]
[1723294085747,1.136,2635.4,2635.1,0.20178732]
[1723294085938,1.8975,2635.1,2634.7,2.2808]
[1723294088449,1.8975,2635.1,2634.7,21.8408]
[1723294089930,4.89733,2635.3,2634.7,21.8408]
[1723294090134,1.89733,2635.3,2634.8,2.4221]
[1723294090673,1.89733,2635.3,2634.8,3.5581]
[1723294090883,3.0,2635.4,2634.9,2.4221]
[1723294091092,1.8972,2635.5,2634.9,2.4221]
[1723294091390,4.89729,2635.4,2634.9,2.4221]
[1723294093382,1.89732,2635.3,2634.9,2.4221]
[1723294094391,1.89732,2635.3,2634.9,21.9821]
[1723294095243,1.89732,2635.3,2634.9,22.66047802]
[1723294098166,1.89732,2635.3,2635.0,0.20120537]
[1723294098891,3.0,2635.4,2635.0,0.20120537]
[1723294099054,1.8972,2635.5,2635.0,0.20120537]
[1723294099254,1.89728,2635.4,2635.0,0.20120537]
[1723294099570,4.89728,2635.4,2635.0,2.70279637]
[1723294102057,1.89732,2635.3,2635.0,2.70279637]
[1723294102361,1.89732,2635.3,2635.0,0.20120537]
[1723294103467,1.89732,2635.3,2635.1,2.4221]
[1723294103892,1.89732,2635.3,2635.2,0.2008682]
[1723294108107,4.89724,2635.4,2635.2,0.2008682]
[1723294111042,1.89695,2635.9,2635.3,2.295]
[1723294111181,1.89695,2635.9,2635.4,1.136]
[1723294111383,1.89677,2636.1,2635.6,1.136]
[1723294111609,1.89677,2636.1,2635.8,2.295]
[1723294112011,1.89677,2636.1,2635.9,0.20020798]
[1723294114122,3.79358,2636.1,2635.9,0.20020798]
[1723294114301,4.89681,2636.0,2635.9,0.20020798]
[1723294116437,6.79362,2636.0,2635.9,0.20020798]
[1723294116600,1.89697,2635.8,2635.6,2.295]
[1723294117045,3.79398,2635.8,2635.6,2.295]
[1723294117336,1.89697,2635.8,2635.6,2.295]
[1723294117500,1.89702,2635.7,2635.6,2.295]
[1723294121744,1.89694,2635.9,2635.6,2.295]
[1723294122345,1.89697,2635.8,2635.6,2.295]
[1723294128368,1.89697,2635.8,2635.7,0.20000089]
[1723294135164,1.89688,2635.9,2635.7,0.20000089]
[1723294141005,4.8968,2636.1,2635.7,0.20000089]
[1723294141286,1.89682,2636.0,2635.7,0.20000089]
[1723294141583,4.89674,2636.1,2635.7,0.20000089]
[1723294141786,4.89674,2636.1,2635.7,1.33600089]
[1723294141945,3.0,2636.1,2635.7,1.33600089]
[1723294142152,3.79343,2636.2,2635.7,1.33600089]
[1723294142351,4.89674,2636.1,2635.7,1.33600089]
[1723294142571,3.0,2636.0,2635.7,1.33600089]
[1723294142977,4.89674,2636.1,2635.7,1.33600089]
[1723294143655,3.0,2636.0,2635.7,1.33600089]
[1723294144088,1.89674,2636.1,2635.7,1.33600089]
[1723294146087,4.89664,2636.3,2635.8,2.4533]
[1723294146568,1.89656,2636.4,2636.0,2.4533]
[1723294146764,1.89641,2636.6,2636.0,2.4533]
[1723294146953,1.89646,2636.5,2636.1,0.19953271]
[1723294147581,4.89646,2636.5,2636.1,0.19953271]
[1723294147985,4.89646,2636.5,2636.1,1.33553271]
[1723294150098,1.89664,2636.3,2636.1,0.19953271]
[1723294151795,6.23092,2636.2,2636.1,0.19953271]
[1723294152099,1.89682,2636.0,2635.5,23.1798]
[1723294152456,7.33426,2636.2,2635.5,23.1798]
[1723294152683,5.4376,2636.2,2635.5,23.1798]
[1723294152993,1.89687,2636.0,2635.5,25.687502]
[1723294153373,3.79373,2636.0,2635.5,25.687502]
[1723294153602,1.89686,2636.0,2635.5,25.687502]
[1723294155096,1.89693,2635.9,2635.5,25.687502]
[1723294156466,3.79374,2636.0,2635.6,0.67226702]
[1723294156666,3.79374,2636.0,2635.5,23.1798]
[1723294157067,1.89686,2636.0,2635.5,23.1798]
[1723294157481,3.79372,2636.0,2635.5,23.1798]
[1723294157680,1.89686,2636.0,2635.5,23.1798]
[1723294158200,1.89686,2636.0,2635.6,0.19958132]
[1723294158966,3.79372,2636.0,2635.6,0.19958132]
[1723294161789,1.8969,2635.9,2635.6,0.19958132]
[1723294165325,3.79373,2636.0,2635.6,0.19958132]
[1723294166180,1.89689,2635.9,2635.6,0.19958132]
[1723294168790,1.89697,2635.8,2635.6,0.19958132]
[1723294168995,1.89702,2635.7,2635.6,0.19958132]
[1723294173828,1.89697,2635.8,2635.6,0.19958132]
[1723294174331,1.89684,2636.0,2635.6,0.58151945]
[1723294174505,1.89684,2636.0,2635.7,2.3601]
[1723294174708,1.89684,2636.0,2635.7,2.56006657]
[1723294175026,1.89684,2636.0,2635.8,1.136]
[1723294175233,3.0,2636.1,2635.8,1.33585687]
[1723294175525,1.8967,2636.2,2635.9,2.3601]
[1723294176041,1.8967,2636.2,2635.8,1.7813201]
[1723294176042,1.89654,2636.4,2636.1,2.3601]
[1723294176597,1.89649,2636.5,2636.2,1.33549654]
[1723294177526,1.89652,2636.4,2636.2,0.19949654]
[1723294177727,1.89652,2636.4,2636.2,19.75949654]
[1723294181354,1.89659,2636.3,2636.2,19.75949654]
[1723294186126,3.79318,2636.3,2636.2,19.75949654]
[1723294189663,3.79318,2636.3,2636.2,0.19949654]
[1723294189862,1.89676,2636.1,2635.8,21.8178]
[1723294192476,1.89688,2635.9,2635.8,19.56]
[1723294192866,3.79376,2635.9,2635.8,19.56]
[1723294195454,1.89707,2635.7,2635.5,19.56]
[1723294195785,3.79415,2635.7,2635.5,19.56]
[1723294196774,1.8971,2635.6,2635.5,19.56]
[1723294196980,1.8971,2635.6,2635.1,7.49]
[1723294196981,1.136,2635.8,2635.2,21.8178]
[1723294197147,1.89738,2635.2,2635.1,19.56]
[1723294198583,1.89731,2635.3,2635.1,19.56]
[1723294201478,3.79468,2635.3,2635.1,19.56]
[1723294202266,1.89738,2635.2,2635.1,19.56]
[1723294202567,1.89738,2635.2,2634.9,2.2578]
[1723294202889,1.8975,2635.1,2634.9,2.2578]
[1723294203053,1.89738,2635.2,2634.9,2.2578]
[1723294203251,1.89729,2635.4,2635.0,1.3367102]
[1723294204257,3.0,2635.6,2635.0,1.3367102]
[1723294204456,3.0,2635.6,2635.2,1.136]
[1723294204457,1.89714,2635.6,2635.2,1.136]
[1723294204696,1.89722,2635.5,2635.2,3.3938]
[1723294204872,4.89722,2635.5,2635.3,0.20049372]
[1723294205201,4.89722,2635.5,2635.2,3.3938]
[1723294205497,3.0,2635.5,2635.3,0.20046921]
[1723294205696,1.89714,2635.6,2635.2,3.3938]
[1723294205886,1.89717,2635.5,2635.4,0.20038888]
[1723294206086,4.89717,2635.5,2635.2,3.3938]
[1723294206396,4.89717,2635.5,2635.4,0.20036927]
[1723294206702,3.0,2635.5,2635.4,0.20036927]
[1723294207004,1.89714,2635.6,2635.2,3.3938]
[1723294207298,1.89714,2635.6,2635.3,0.20061135]
[1723294207460,1.89714,2635.6,2635.2,3.3938]
[1723294207661,3.7943,2635.6,2635.4,0.20053103]
[1723294207857,4.89717,2635.5,2635.2,3.3938]
[1723294208053,3.0,2635.4,2635.2,3.3938]
[1723294208459,4.89717,2635.5,2635.2,3.3938]
[1723294209190,3.0,2635.5,2635.2,3.3938]
[1723294209384,1.89717,2635.5,2635.2,3.3938]
[1723294210568,1.8971,2635.6,2635.2,3.3938]
[1723294211815,1.89718,2635.5,2635.2,3.3938]
[1723294213502,1.8971,2635.6,2635.2,3.3938]
[1723294214207,1.89717,2635.5,2635.2,2.2578]
[1723294216386,1.89726,2635.4,2635.2,2.2578]
[1723294216723,1.89732,2635.3,2635.1,19.56]
[1723294217021,6.19576,2635.2,2635.1,19.56]
[1723294218420,6.19576,2635.2,2635.1,19.76071319]
[1723294218922,3.79476,2635.2,2635.1,19.76071319]
[1723294219426,3.79476,2635.2,2635.1,0.20071319]
[1723294219626,1.89738,2635.2,2635.1,0.20071319]
[1723294219850,1.89747,2635.1,2634.6,23.0677]
[1723294219994,4.89732,2635.3,2634.6,23.0677]
[1723294219995,4.89732,2635.3,2634.7,2.30677]
[1723294220194,1.89743,2635.2,2634.8,2.3717]
[1723294221094,1.89746,2635.1,2634.8,2.3717]
[1723294221295,1.89746,2635.1,2634.8,3.24489902]
[1723294221495,1.89739,2635.2,2634.8,3.24489902]
[1723294222726,1.8975,2635.1,2634.8,3.24489902]
[1723294222930,1.89753,2635.0,2634.8,2.3717]
[1723294224140,1.89739,2635.2,2634.8,2.3717]
[1723294224338,6.79483,2635.2,2634.8,2.3717]
[1723294226038,1.89746,2635.1,2634.8,2.3717]
[1723294226523,3.0,2635.2,2634.8,5.81447]
[1723294226840,4.89727,2635.4,2634.8,5.81447]
[1723294227035,1.89727,2635.4,2634.8,3.44277]
[1723294227402,3.0,2635.3,2634.9,3.14349902]
[1723294227755,1.89727,2635.4,2634.9,3.14349902]
[1723294228637,3.79458,2635.4,2634.9,3.14349902]
[1723294228838,3.0,2635.3,2634.9,3.14349902]
[1723294229022,4.89732,2635.3,2634.9,3.14349902]
[1723294229237,4.89732,2635.3,2634.9,2.2703]
[1723294230225,1.8974,2635.2,2634.9,2.2703]
[1723294230632,1.8974,2635.2,2634.8,1.136]
[1723294231244,1.89748,2635.1,2634.8,20.696]
[1723294231451,1.89748,2635.1,2634.8,19.56]
[1723294231952,1.89757,2635.0,2634.8,19.56]
[1723294232150,1.89778,2634.7,2634.3,8.626]
[1723294232325,1.89778,2634.7,2634.1,1.89813]
[1723294232326,1.89794,2634.5,2634.1,1.136]
[1723294232527,1.898,2634.4,2634.1,0.55464607]
[1723294232718,1.89806,2634.3,2634.1,0.55464607]
[1723294232919,1.89806,2634.3,2633.8,2.2703]
[1723294233321,1.89806,2634.3,2633.9,0.24962449]
[1723294233534,3.79589,2634.5,2633.9,0.24962449]
[1723294233729,1.89794,2634.5,2633.9,0.99489594]
[1723294234047,1.89794,2634.5,2633.9,2.89317594]
[1723294234254,1.89794,2634.5,2633.9,4.02917594]
[1723294234551,3.79589,2634.5,2633.9,4.02917594]
[1723294234943,1.89794,2634.5,2634.1,2.2703]
[1723294235148,2.65083423,2635.5,2634.5,2.2703]
[1723294235149,4.89742,2635.2,2634.5,2.2703]
[1723294235323,1.89747,2635.1,2634.6,1.3850491]
[1723294235653,2.276959,2635.1,2634.6,1.3850491]
[1723294235852,1.89757,2635.0,2634.6,1.3850491]
[1723294236071,1.89757,2635.0,2634.6,0.2490491]
[1723294236262,1.89769,2634.8,2634.6,0.2490491]
[1723294236642,1.89757,2635.0,2634.6,0.2490491]
[1723294237125,4.89757,2635.0,2634.6,0.2490491]
[1723294237930,1.89761,2634.9,2634.6,0.2490491]
[1723294240859,3.79528,2634.9,2634.6,0.2490491]
[1723294241060,1.89761,2634.9,2634.6,0.2490491]
[1723294241828,1.89768,2634.8,2634.6,0.2490491]
[1723294242669,1.89761,2634.9,2634.6,0.2490491]
[1723294243168,3.79527,2634.9,2634.6,0.2490491]
[1723294244364,3.03374,2634.7,2634.6,0.2490491]
[1723294244567,9.29622,2634.7,2634.6,0.2490491]
[1723294244738,12.29622,2634.7,2634.6,0.2490491]
[1723294245062,1.89827,2634.0,2633.4,1.89868]
[1723294245242,1.89827,2634.0,2633.3,2.2575]
[1723294245243,3.03429,2634.0,2633.3,2.2575]
[1723294245443,1.89851,2633.7,2633.5,0.25011035]
[1723294245639,3.03444,2633.8,2633.4,0.2501926]
[1723294245640,1.89854,2633.6,2633.4,0.2501926]
[1723294245838,1.89854,2633.6,2633.3,2.2575]
[1723294246266,3.79714,2633.6,2633.3,2.2575]
[1723294246470,3.79714,2633.6,2633.0,4.15645]
[1723294246645,1.89854,2633.6,2633.0,4.762003]
[1723294247378,1.89862,2633.5,2633.0,2.863053]
[1723294247671,1.89869,2633.4,2633.0,2.863053]
[1723294248369,1.89869,2633.4,2633.1,0.25043938]
[1723294252563,6.79688,2633.8,2633.1,2.14930938]
[1723294252764,6.79689,2633.8,2633.1,2.77988832]
[1723294253375,1.89847,2633.7,2633.1,2.77988832]
[1723294253577,6.79688,2633.8,2633.1,2.77986832]
[1723294254289,6.79689,2633.8,2633.1,2.77986832]
[1723294254594,3.0,2633.8,2633.4,2.2575]
[1723294254768,0.59500104,2633.9,2633.4,2.2575]
[1723294254968,3.59500104,2633.9,2633.5,0.25096896]
[1723294255369,0.59500104,2633.9,2633.5,0.25096896]
[1723294256008,3.59500104,2633.9,2633.5,0.25096896]
[1723294256656,0.59500104,2633.9,2633.5,0.25096896]
[1723294258087,2.49333104,2633.9,2633.5,0.25096896]
[1723294258302,1.8984,2633.8,2633.5,0.25096896]
[1723294258663,3.0,2633.8,2633.5,0.25096896]
[1723294259005,1.89832,2633.9,2633.5,0.25096896]
[1723294259181,4.89832,2633.9,2633.5,0.25096896]
[1723294260188,3.0,2633.9,2633.5,0.25096896]
[1723294260487,3.79657,2634.0,2633.5,0.25096896]
[1723294260692,3.0,2633.9,2633.5,0.25096896]
[1723294260993,4.89835,2633.9,2633.5,0.25096896]
[1723294261407,3.0,2633.9,2633.5,0.25096896]
[1723294261707,1.89826,2634.0,2633.5,0.25096896]
[1723294261867,3.79656,2634.0,2633.5,0.25096896]
[1723294262067,3.0,2633.9,2633.5,0.25096896]
[1723294262417,4.89836,2633.9,2633.5,0.25096896]
[1723294263694,1.89854,2633.6,2633.5,0.25096896]
[1723294263912,1.89863,2633.5,2633.1,2.2575]
[1723294264091,4.89863,2633.5,2633.1,2.2575]
[1723294266009,3.0,2633.5,2633.1,2.2575]
[1723294266173,3.0,2633.5,2632.7,1.89916]
[1723294266174,1.89884,2633.2,2632.8,2.3224]
[1723294266372,1.89882,2633.3,2632.8,2.3224]
[1723294267177,1.89881,2633.3,2632.8,2.3224]
[1723294267384,3.79762,2633.3,2632.8,2.3224]
[1723294267798,3.0,2633.5,2633.1,1.136]
[1723294268080,3.0,2633.5,2632.9,1.89903]
[1723294268081,1.89851,2633.7,2633.3,1.136]
[1723294268286,3.0,2633.8,2633.3,1.136]
[1723294268519,4.8984,2633.8,2633.3,1.136]
[1723294269012,3.0,2633.8,2633.3,3.11065558]
[1723294269200,3.0,2633.8,2633.3,3.65396114]
[1723294269201,1.89841,2633.8,2633.3,3.65396114]
[1723294269522,3.0,2633.8,2633.3,3.65396114]
[1723294269699,3.0,2633.8,2633.3,0.54330556]
[1723294270019,1.89855,2633.6,2633.2,2.3224]
[1723294270192,1.89865,2633.5,2632.9,4.22141]
[1723294270588,6.79731,2633.5,2632.9,4.22141]
[1723294270788,1.89869,2633.4,2632.9,4.833466]
[1723294271119,1.89869,2633.4,2633.0,0.25216551]
[1723294271319,4.89865,2633.5,2633.0,0.25216551]
[1723294271516,1.89865,2633.5,2633.0,0.25216551]
[1723294272405,1.89865,2633.5,2633.0,0.76072666]
[1723294272826,1.89865,2633.5,2633.0,2.65968666]
[1723294273602,3.79732,2633.5,2633.0,0.25216551]
[1723294273930,1.89877,2633.3,2633.0,0.25216551]
[1723294274836,1.8989,2633.1,2633.0,0.25216551]
[1723294275001,2.08879,2633.1,2633.0,0.25216551]
[1723294275202,1.89898,2633.0,2632.6,2.3224]
[1723294275403,4.89898,2633.0,2632.6,2.3224]
[1723294275846,1.89909,2632.9,2632.6,2.3224]
[1723294276744,1.89909,2632.9,2632.3,4.36347678]
[1723294276917,1.89909,2632.9,2632.3,4.98978346]
[1723294278354,1.89912,2632.8,2632.4,0.25275258]
[1723294278821,1.89909,2632.9,2632.4,0.25275258]
[1723294279013,4.89909,2632.9,2632.4,0.25275258]
[1723294279870,1.89909,2632.9,2632.4,0.25275258]
[1723294280856,1.89892,2633.1,2632.5,1.89929]
[1723294280857,3.0,2633.0,2632.5,1.89929]
[1723294281018,1.89892,2633.1,2632.7,2.3224]
[1723294281343,1.89892,2633.1,2632.8,0.25294399]
[1723294281547,3.0,2633.2,2632.7,2.3224]
[1723294281747,1.89879,2633.3,2632.8,0.49278012]
[1723294281919,1.89865,2633.5,2632.9,1.89903]
[1723294282118,1.89865,2633.5,2633.1,2.3224]
[1723294282358,1.89865,2633.5,2633.2,0.25261488]
[1723294282720,1.8985,2633.7,2633.2,0.25261488]
[1723294286048,1.89861,2633.5,2633.2,0.25261488]
[1723294286230,1.89861,2633.5,2633.2,0.25128575]
[1723294288535,1.8987,2633.4,2633.2,0.25128575]
[1723294290264,1.8983,2634.0,2633.3,1.89875]
[1723294290465,1.8983,2634.0,2633.4,2.3242]
[1723294290633,2.31856,2634.0,2633.4,2.57608053]
[1723294291434,1.89832,2633.9,2633.4,2.57608053]
[1723294291635,4.89832,2633.9,2633.4,2.57608053]
[1723294293965,1.89844,2633.8,2633.4,22.13608053]
[1723294294266,2.43031,2633.8,2633.4,22.13608053]
[1723294294470,1.89844,2633.8,2633.4,22.13608053]
[1723294294942,1.89849,2633.7,2633.4,22.13608053]
[1723294295271,4.89849,2633.7,2633.4,22.13608053]
[1723294295443,3.0,2633.7,2633.4,22.13608053]
[1723294295650,1.89844,2633.8,2633.4,22.13608053]
[1723294298151,1.89851,2633.7,2633.4,22.13608053]
[1723294298354,4.89851,2633.7,2633.4,22.13608053]
[1723294300165,4.89851,2633.7,2633.4,2.57608053]
[1723294300673,1.89858,2633.6,2633.4,0.25188053]
[1723294300967,3.79717,2633.6,2633.4,0.25188053]
[1723294301155,1.89858,2633.6,2633.2,19.56]
[1723294301339,1.89858,2633.6,2633.5,0.25170499]
[1723294301539,1.89858,2633.6,2633.2,19.56]
[1723294301540,2.278281,2633.6,2633.2,19.56]
[1723294301740,1.89858,2633.6,2633.2,19.56]
[1723294301935,1.89858,2633.6,2633.3,0.2518695]
[1723294302174,1.89858,2633.6,2633.2,19.56]
[1723294302542,1.89858,2633.6,2633.3,0.25184495]
[1723294302986,1.89858,2633.6,2633.4,0.25176269]
[1723294303298,1.89858,2633.6,2633.2,19.56]
[1723294303450,1.89862,2633.5,2633.2,19.56]
[1723294304258,1.89849,2633.7,2633.3,2.3242]
[1723294304458,1.89855,2633.6,2633.3,2.3242]
[1723294304702,3.79701,2633.7,2633.3,2.3242]
[1723294305001,4.89836,2633.9,2633.3,4.22291]
[1723294305188,1.89845,2633.8,2633.3,2.3242]
[1723294305391,4.89845,2633.8,2633.3,4.892383]
[1723294306109,4.89845,2633.8,2633.3,24.452383]
[1723294307026,4.89845,2633.8,2633.3,21.8842]
[1723294307318,1.89854,2633.6,2633.3,21.8842]
[1723294308282,1.89854,2633.6,2633.4,0.25168414]
[1723294311424,4.89848,2633.7,2633.4,0.25168414]
[1723294311642,3.0,2633.7,2633.4,0.25168414]
[1723294311924,3.79689,2633.8,2633.4,0.25168414]
[1723294312076,3.0,2633.7,2633.4,0.25168414]
[1723294312481,2.31855,2634.0,2633.4,2.15035414]
[1723294312698,4.89823,2634.1,2633.6,2.4569]
[1723294313200,4.89823,2634.1,2633.7,0.25149633]
[1723294313718,3.0,2634.0,2633.7,0.25149633]
[1723294313894,7.39109251,2634.3,2633.8,2.4569]
[1723294314080,7.39109251,2634.3,2633.8,22.0169]
[1723294314281,1.89811,2634.2,2633.9,0.25116494]
[1723294315230,1.89825,2634.0,2633.9,0.25116494]
[1723294315527,4.89825,2634.0,2633.9,0.25116494]
[1723294317555,3.0,2634.0,2633.9,2.70806494]
[1723294317710,1.89818,2634.1,2633.9,2.70806494]
[1723294320613,1.89825,2634.0,2633.9,0.25116494]
[1723294320820,5.43247928,2634.0,2633.6,22.0169]
[1723294321019,5.43247928,2634.0,2633.7,0.25128031]
[1723294323917,1.89835,2633.9,2633.7,0.25128031]
[1723294324123,4.89835,2633.9,2633.7,0.25128031]
[1723294324327,3.53422928,2634.0,2633.7,0.25128031]
[1723294324516,5.43248928,2634.0,2633.7,0.25128031]
[1723294325224,3.0,2634.0,2633.7,0.25128031]
[1723294325724,1.89818,2634.1,2633.7,0.25128031]
[1723294327614,3.79641,2634.1,2633.7,0.25128031]
[1723294327826,3.0,2634.0,2633.7,0.25128031]
[1723294328037,1.89833,2633.9,2633.7,0.25128031]
[1723294328197,3.79671,2633.9,2633.7,0.25128031]
[1723294328402,1.89833,2633.9,2633.7,0.25128031]
[1723294328730,2.47914241,2633.9,2633.7,0.25128031]
[1723294328931,1.89851,2633.7,2633.5,19.56]
[1723294329250,1.89861,2633.5,2633.4,19.56]
[1723294332758,1.89868,2633.4,2633.1,2.2773]
[1723294333242,1.89868,2633.4,2633.0,19.56]
[1723294334258,7.286994,2633.6,2633.0,19.56]
[1723294334456,1.89862,2633.5,2633.0,19.56]
[1723294334610,1.89868,2633.4,2633.0,19.56]
[1723294336622,1.89868,2633.4,2632.9,2.2773]
[1723294336822,1.89884,2633.2,2632.9,21.8373]
[1723294337359,2.520042,2633.2,2632.9,19.56]
[1723294338253,1.8989,2633.1,2633.0,0.25210156]
[1723294339252,1.8989,2633.1,2632.7,2.2773]
[1723294339458,2.520042,2633.2,2632.8,0.25226612]
[1723294339459,1.89901,2633.0,2632.8,0.25226612]
[1723294339961,1.89901,2633.0,2632.6,19.56]
[1723294340149,1.89901,2633.0,2632.9,0.25218384]
[1723294340319,1.89901,2633.0,2632.6,19.56]
[1723294340515,1.89901,2633.0,2632.9,0.25233607]
[1723294340814,1.89906,2632.9,2632.5,21.8373]
[1723294341322,3.79816,2632.9,2632.5,21.8373]
[1723294341723,1.89913,2632.8,2632.5,21.8373]
[1723294341921,1.89913,2632.8,2632.5,2.2773]
[1723294344136,5.36612262,2633.0,2632.5,2.2773]
[1723294344336,2.36612262,2633.0,2632.5,2.2773]
[1723294345027,1.89901,2633.0,2632.5,2.2773]
[1723294345847,1.89901,2633.0,2632.5,4.17662]
[1723294346028,3.0,2633.1,2632.6,1.89921]
[1723294346229,1.89886,2633.2,2632.6,1.97517256]
[1723294347125,1.89886,2633.2,2632.6,1.89921]
[1723294347377,1.89886,2633.2,2632.7,2.3238]
[1723294347640,1.89886,2633.2,2632.7,21.8838]
[1723294348906,4.89872,2633.4,2632.7,26.161241]
[1723294349091,1.89872,2633.4,2632.8,1.89907]
[1723294349749,1.89872,2633.4,2632.9,1.136]
[1723294350150,1.89876,2633.3,2633.0,2.3238]
[1723294350398,4.89876,2633.3,2633.0,2.3238]
[1723294351758,1.89887,2633.2,2632.7,23.074301]
[1723294352086,1.89894,2633.1,2632.8,2.3238]
[1723294352990,4.89887,2633.2,2632.8,2.3238]
[1723294353292,1.89887,2633.2,2632.9,0.25261109]
[1723294356205,3.0,2633.3,2632.9,0.25261109]
[1723294356206,3.0,2633.3,2632.9,2.15160109]
[1723294356505,3.0,2633.5,2633.1,2.3238]
[1723294356872,3.0,2633.5,2633.2,0.25236427]
[1723294357071,4.89856,2633.6,2633.2,0.25236427]
[1723294357271,1.89862,2633.5,2633.2,0.25236427]
[1723294357469,1.89869,2633.4,2633.2,0.25236427]
[1723294357670,4.89869,2633.4,2633.2,0.25236427]
[1723294358094,3.0,2633.3,2633.2,0.25236427]
[1723294358273,1.89869,2633.4,2633.2,0.25236427]
[1723294359625,4.89861,2633.5,2633.2,0.25236427]
[1723294360190,1.89868,2633.4,2633.2,0.25236427]
[1723294361099,1.89868,2633.4,2632.9,21.94085679]
[1723294361318,1.89868,2633.4,2633.3,0.25228201]
[1723294361791,1.89868,2633.4,2632.9,21.94085679]
[1723294361986,1.89868,2633.4,2633.0,0.25245025]
[1723294364527,4.89862,2633.5,2633.0,0.25245025]
[1723294367537,1.89869,2633.4,2633.0,0.25245025]
[1723294368327,2.578415,2633.4,2633.0,0.25245025]
[1723294368633,3.0,2633.3,2633.0,0.25245025]
[1723294369011,1.89869,2633.4,2633.0,0.25245025]
[1723294370650,1.89876,2633.3,2633.0,0.25245025]
[1723294370850,4.89876,2633.3,2633.0,0.25245025]